Cogmind - Beta 16 *** ADVENTURER MODE // 2025.11.24 @ 22:56:07 Player: Aristaeus Result: Destroyed by TD-5LF(R) with Subdweller Laser Performance ------------- Evolutions (0) 0 Regions Visited (2) 400 Robots Destroyed (23) 115 Value Destroyed (716) 716 Prototype IDs (3) 60 Alien Tech Used (0) 0 Bonus (0) 0 TOTAL SCORE: 1291 Bonus ------- None Cogmind --------- Core Integrity 0/250 Matter 300/300 Energy 100/100 System Corruption 1% Temperature Cool (6) Movement Walking (120) Location -10/Subcaves Parts ------- > --- POWER (1) -------- (None) > --- PROPULSION (2) --- Carbon-fiber Leg > --- UTILITY (2) ------ Medium Storage Unit Signal Interpreter > --- WEAPON (2) ------- Heavy Hammer > --- INVENTORY (10) --- Aluminum Leg Aluminum Leg Improved Heat Sink Medium Storage Unit Sensor Array Scrap Shield Subdweller Machine Gun Scrap Shield Fragment (45) Peak State ------------ > --- POWER ------------ Light Angular Momentum Engine > --- PROPULSION ------- Carbon-fiber Leg Carbon-fiber Leg > --- UTILITY ---------- Medium Storage Unit Signal Interpreter > --- WEAPON ----------- Heavy Assault Rifle Heavy Hammer > --- INVENTORY -------- Aluminum Leg Aluminum Leg Improved Heat Sink Medium Storage Unit Sensor Array Terrain Scanner Medium Armor Plating Light EM Pulse Cannon Grenade Launcher Scrap Shield Fragment [Rating: 18] Favorites ----------- Power Light Ion Engine Engine Light Ion Engine Propulsion Aluminum Leg Leg Aluminum Leg Utility Medium Storage Unit Device Structural Scanner Storage Medium Storage Unit Processor Signal Interpreter Weapon Heavy Hammer Energy Gun Medium Laser Energy Cannon Light EM Pulse Cannon Ballistic Gun Heavy Assault Rifle Launcher Grenade Launcher Impact Weapon Heavy Hammer Build | -11 -10 -10 ------- Run | Yrd Mat Sub Slots Evolved . | . . . Power . | . . . Propulsion . | . . . Utility . | . . . Weapon . | . . . Parts Attached 23 | 7 9 7 Power 5 | 1 2 2 Engine 5 | 1 2 2 Core . | . . . Reactor . | . . . Propulsion 4 | 2 . 2 Treads . | . . . Leg 4 | 2 . 2 Wheel . | . . . Hover . | . . . Flight . | . . . Utility 6 | 2 4 . Device 3 | 1 2 . Storage 2 | 1 1 . Processor 1 | . 1 . Hackware . | . . . Protection . | . . . Artifact . | . . . Weapon 8 | 2 3 3 Energy Gun 1 | . 1 . Energy Cannon 1 | . . 1 Ballistic Gun 4 | 2 1 1 Ballistic Cannon . | . . . Launcher 1 | . . 1 Special Weapon . | . . . Impact Weapon 1 | . 1 . Slashing Weapon . | . . . Piercing Weapon . | . . . Special Melee Weapon . | . . . Unidentified Prototypes . | . . . Parts Lost 5 | . . 5 Power 2 | . . 2 Propulsion 1 | . . 1 Utility . | . . . Weapon 2 | . . 2 Highest Loss Streak 2 | . . 2 To Critical Strikes . | . . . Average Backups 7 | 3 8 8 Power . | 1 1 . Propulsion 1 | . 1 2 Utility 3 | . 3 4 Weapon 1 | 1 1 1 Tool/Special . | . . . Unused Backups 13 | . 5 8 Power . | . . . Propulsion 2 | . . 2 Utility 8 | . 2 6 Weapon 3 | . 3 . Tool/Special . | . . . Average Slot Usage (%) 99 | . 100 98 Engine 13 | . 14 13 Leg 27 | . 28 27 Device 4 | . 7 . Storage 14 | . 14 14 Processor 9 | . 6 14 Ballistic Gun 12 | . 16 8 Launcher 2 | . . 4 Impact Weapon 12 | . 10 14 Peak Build Rating 18 | 7 10 18 Average Rating 10 | 4 9 14 On Entrance 5 | . 7 10 Avg Prop Armor Cover (%) . | . . . Naked Turns . | . . . Heaviest Build 26 | 12 22 26 Greatest Support 30 | 20 20 30 Greatest Overweight (x) 1 | . 1 1 Average Overweight (x) . | . . . Largest Inventory Capacity 10 | 8 10 10 Average Capacity 9 | 5 9 10 Most Carried 10 | 5 10 10 Average Carried 8 | 3 8 9 Final Capacity 10 | 8 10 10 Final Carried 10 | 3 10 9 Class Distribution -------------------- 100% | Mutant Dominant Class ---------------- Mutant | -10/Materials Mutant | -10/Subcaves Resources | -11 -10 -10 ----------- Run | Yrd Mat Sub Matter Collected 557 | 255 162 140 Remotely . | . . . Salvage Created 633 | 44 322 267 Parts 28 | 3 13 12 Haulers Intercepted . | . . . Recyclers Shooed . | . . . Parts Field Recycled . | . . . Retrieved Matter . | . . . Parts Self-Destructed 6 | . . 6 Prevented . | . . . Parts Restored . | . . . Kills | -11 -10 -10 ------- Run | Yrd Mat Sub Combat Hostiles Destroyed 21 | . 11 10 Melee 10 | . 8 2 AOE 4 | . . 4 Classes Destroyed 4 | 1 2 1 Tunneler 2 | 2 . . Swarmer 3 | . 3 . Grunt 8 | . 8 . Subdweller 10 | . . 10 Best Kill Streak 5 | 1 5 5 Combat Bots Only 5 | . 5 5 Max Kills in Single Turn 2 | 1 1 2 Gunslinging . | . . . Exploded 2 | . . 2 Melee 1 | . 1 1 Uniques/NPCs Destroyed . | . . . Combat | -11 -10 -10 -------- Run | Yrd Mat Sub Hostile Shots Fired 105 | . 30 75 Missed 30 | . 8 22 Hits 75 | . 22 53 Projectile 75 | . 22 53 AOE 4 | . . 4 Critical Strikes 1 | . . 1 Damage Taken 1150 | . 154 996 Core 265 | . 28 237 Absorbed by Shields . | . . . Ignored by Resistances 331 | . 55 276 Core Remaining (%) 100 | 100 . . Volleys Fired 18 | 6 1 11 Largest 2 | 2 1 1 Hottest 56 | 40 23 56 Shots Fired 24 | 12 1 11 Gun 13 | 12 1 . Cannon 4 | . . 4 Launcher 7 | . . 7 Special . | . . . Kinetic 13 | 12 1 . Thermal . | . . . Explosive 7 | . . 7 Electromagnetic 4 | . . 4 Robot Hit Streak 10 | 6 7 10 Robot Miss Streak 1 | 1 . 1 Penetration Max . | . . . Secondary Targets . | . . . Shots Hit Robots 62 | 9 17 36 Core Hits 21 | 2 6 13 Critical Kills 2 | . 2 . Critical Parts Destroyed 7 | . 3 4 Critical Strikes 9 | . 5 4 Smash 9 | . 5 4 Melee Attacks 46 | . 16 30 Impact 46 | . 16 30 Slashing . | . . . Piercing . | . . . Sneak Attacks . | . . . Combat Hostiles . | . . . Follow-up Attacks . | . . . Damage Inflicted 2258 | 99 606 1553 Guns 112 | 99 13 . Cannons 36 | . . 36 Explosions 518 | . . 518 Melee 1592 | . 593 999 Ramming . | . . . Kinetic 112 | 99 13 . Thermal 63 | . . 63 Explosive 455 | . . 455 Electromagnetic 36 | . . 36 Impact 1592 | . 593 999 Slashing . | . . . Piercing . | . . . Highest Corruption 1 | . 1 1 Average Corruption 1 | . 1 1 Corruption Purged . | . . . Corruption Blocked . | . . . Effects 5 | . 2 3 Message Errors 2 | . . 2 Energy Discharges 3 | . 2 1 Overload Shots . | . . . Overflow Damage 426 | . 166 260 Projectiles . | . . . Explosions 12 | . . 12 Melee 414 | . 166 248 Knockbacks 11 | . 2 9 Impact 10 | . 1 9 Kinetic . | . . . Secondary 1 | . 1 . Self-Inflicted Damage 41 | . . 41 Shots 2 | . . 2 Rammed . | . . . Targets Rammed . | . . . Kicked . | . . . Crushed . | . . . Highest Temperature . | . . . Average Temperature . | . . . Received Heat Transfer 291 | . 78 213 Siege Activations . | . . . Martial Activations . | . . . Shielding Activations . | . . . Robots Disrupted . | . . . Combat Hostiles . | . . . Robots Corrupted 7 | . 3 4 Combat Hostiles 7 | . 3 4 Parts Fried 7 | . 5 2 Impact Corruptions 16 | . 8 8 Robots Melted . | . . . Combat Hostiles . | . . . Parts Melted . | . . . Heat Transferred . | . . . Parts Sabotaged . | . . . Parts Stolen . | . . . Parts Stripped . | . . . Power Chain Reactions 1 | . . 1 Alert | -11 -10 -10 ------- Run | Yrd Mat Sub Maximum Alert Level . | . . . Low Security (%) 100 | 100 100 . Level 1 . | . . . Level 2 . | . . . Level 3 . | . . . Level 4 . | . . . Level 5 . | . . . High Security . | . . . Max Security . | . . . Peak Influence 176 | 5 176 . Initial . | . . . Average 31 | . 39 . Influence Increases 317 | 10 307 . Destroy 0b10 Robot/C 220 | . 220 . Destroy 0b10 Robot/NC 10 | 10 . . Destroy Leader 40 | . 40 . Successful Hack 47 | . 47 . Influence Decreases 317 | 10 307 . Time Decay 317 | 10 307 . Squads Dispatched 4 | . 4 . Investigation 4 | . 4 . Extermination . | . . . Reinforcement . | . . . Assault . | . . . Garrison . | . . . Intercept . | . . . Searches Triggered . | . . . Construction Impeded . | . . . Haulers Reinforced . | . . . Active Scanning Responses . | . . . Cargo Convoy Interrupts . | . . . Stealth | -11 -10 -10 --------- Run | Yrd Mat Sub Distress Signals 1 | . 1 . Communications Jammed . | . . . Distress Signals . | . . . Times Spotted 38 | . 19 19 Peak Tracking Total 9 | . 5 9 Tactical Retreats 1 | . . 1 Traps | -11 -10 -10 ------- Run | Yrd Mat Sub Traps Triggered 2 | . 2 . Indirectly . | . . . Trap Hack Attempts . | . . . Triggered . | . . . Disarmed . | . . . Reprogrammed . | . . . Reused . | . . . Traps Extracted . | . . . Installed . | . . . Triggered . | . . . Machines | -11 -10 -10 ---------- Run | Yrd Mat Sub Machines Disabled . | . . . Max in Single Turn . | . . . Machines Repaired . | . . . Machines Dismantled . | . . . Machines Sabotaged . | . . . Overloaded Fab Kills . | . . . Hacking | -11 -10 -10 --------- Run | Yrd Mat Sub Machines Accessed 9 | . 8 1 Terminals 6 | . 6 . Fabricators . | . . . Repair Stations . | . . . Recycling Units 2 | . 2 . Scanalyzers . | . . . Garrison Access . | . . . Total Hacks 25 | . 20 5 Successful 14 | . 9 5 Failed 11 | . 11 . Catastrophic 3 | . 3 . Database Lockouts . | . . . Manual 6 | . 6 . Terminals 17 | . 17 . Fabricators . | . . . Repair Stations . | . . . Recycling Units 3 | . 3 . Scanalyzers . | . . . Garrison Access . | . . . Terminal Hacks 12 | . 7 5 Record 5 | . . 5 Robot Analysis 1 | . 1 . Prototype ID Bank 1 | . 1 . Alert Level 1 | . 1 . Locate Traps 2 | . 2 . Recall Reinforcements 1 | . 1 . Registered Components 1 | . 1 . Fabricator Hacks . | . . . Repair Station Hacks . | . . . Recycling Unit Hacks 2 | . 2 . Report Inventory 2 | . 2 . Scanalyzer . | . . . Garrison Access Hacks . | . . . Unauthorized Hacks . | . . . Terminals . | . . . Fabricators . | . . . Repair Stations . | . . . Recycling Units . | . . . Scanalyzers . | . . . Garrison Access . | . . . Data Cores Recovered . | . . . Used . | . . . Hacking Detections 5 | . 5 . Full Trace Events 2 | . 2 . Feedback Events 1 | . 1 . Corruption 1 | . 1 . Feedback Blocked . | . . . Robot Schematics Acquired . | . . . Robots Built . | . . . Authchips . | . . . Time . | . . . Total Robot Build Rating . | . . . Part Schematics Acquired . | . . . Parts Built . | . . . Authchips . | . . . Time . | . . . Total Part Build Rating . | . . . Part Studies Acquired . | . . . Parts Repaired . | . . . Time . | . . . Parts Recycled . | . . . Recycled Matter . | . . . Retrieved Matter . | . . . Retrieved Components . | . . . Parts Scanalyzed . | . . . Part Schematics Acquired . | . . . Parts Damaged . | . . . Bothacking | -11 -10 -10 ------------ Run | Yrd Mat Sub Used RIF Installer . | . . . Robots Hacked . | . . . Non-combat . | . . . Combat . | . . . Robot Hacks Applied . | . . . Relay Couplers Released . | . . . Fabnet Peak Effective % . | . . . Robots Rewired . | . . . Allies Hacked . | . . . Hacks Repelled . | . . . Allies | -11 -10 -10 -------- Run | Yrd Mat Sub Total Allies . | . . . Largest Group . | . . . Highest-Rated Group . | . . . Highest-Rated Ally . | . . . Total Orders . | . . . Ally Attacks . | . . . Total Damage . | . . . Kills . | . . . Allies Corrupted . | . . . Allies Melted . | . . . Intel | -11 -10 -10 ------- Run | Yrd Mat Sub Active Infowar (turns) 627 | 47 580 . Terrain 6 | . 6 . Structural 415 | . 415 . Seismic 206 | 47 159 . Robot Analysis Total 1 | . 1 . Derelict Logs Recovered . | . . . Drone Launches . | . . . Drone Recoveries . | . . . Exploration | -11 -10 -10 ------------- Run | Yrd Mat Sub Turns Passed 2119 | 257 1027 835 Spaces Moved 1346 | 221 600 525 Core 63 | 63 . . Treads . | . . . Legs 1283 | 158 600 525 Wheels . | . . . Hover . | . . . Flight . | . . . Fastest Speed 50 | 50 120 120 Average Speed 133 | 100 148 131 Slowest Speed 190 | 120 190 190 Overloaded Moves . | . . . Propulsion Burnouts . | . . . Robots Hopped . | . . . Potential Cave-ins . | . . . Cave-ins Triggered . | . . . Exploration Rate (%) 44 | 6 98 30 Regions Visited 2 Branch Regions 1 Pre-discovered Areas . | . . . Known Exits Taken 1 | . 1 . Unknown Exits Taken 1 | 1 . . Scrap Searched 1 | . . 1 Spaces Dug . | . . . Terrain Destroyed 40 | . . 40 Melee . | . . . Projectile . | . . . AOE 40 | . . 40 Terrain Rammed . | . . . Walls Destroyed . | . . . Machines Disabled . | . . . Actions | -11 -10 -10 --------- Run | Yrd Mat Sub Total 1570 | 246 712 612 Wait 80 | 1 55 24 Move 1344 | 220 599 525 Hop . | . . . Pick Up 32 | 10 17 5 Fast Attach . | . . . Attach 11 | 8 1 2 Detach 1 | 1 . . Swap 16 | . 10 6 Drop 22 | . 13 9 Fire 18 | 6 1 11 Melee 46 | . 16 30 Ram . | . . . Kick . | . . . Crush . | . . . Escape Stasis . | . . . Rewire . | . . . Trap . | . . . Miscellaneous . | . . . Route ------- -11/Scrapyard -10/Materials (discovered 6 exits: *Mat x3 / *Min x2 / *Sub) -10/Subcaves (discovered 1 exit: *Mat) History --------- Turn | Location | Event 13 | -11/Scrapyard | Discovered new exit (range 15) 258 | -11/Scrapyard | Entered Materials 301 | -10/Materials | Build established: Mutant 654 | -10/Materials | Discovered new exit (range 5) 702 | -10/Materials | Discovered new exit (range 3) 872 | -10/Materials | Discovered new exit (range 5) 881 | -10/Materials | Identified exit to Materials 1071 | -10/Materials | Discovered exit to Materials (range 16) 1101 | -10/Materials | Discovered new exit (range 16) 1128 | -10/Materials | Identified exit to Mines 1257 | -10/Materials | Discovered new exit (range 8) 1268 | -10/Materials | Identified exit to Subcaves 1285 | -10/Materials | Entered Subcaves 1286 | -10/Subcaves | Approached by a straggling Scientist 1360 | -10/Subcaves | Discovered new exit (range 5) 1365 | -10/Subcaves | Identified exit to Materials 1417 | -10/Subcaves | Ambushed by swarm of Subdwellers 1417 | -10/Subcaves | Ambushed by Subdwellers from Twisted Machinery 1417 | -10/Subcaves | Ambushed by Subdwellers from Twisted Machinery 1417 | -10/Subcaves | Ambushed by Subdwellers from Twisted Machinery 1436 | -10/Subcaves | Visited Clippyterm 1442 | -10/Subcaves | Learned Factory fabricator intel 1442 | -10/Subcaves | Learned Research security intel 1497 | -10/Subcaves | Lost 4 allies 1676 | -10/Subcaves | Shifting Twisted Machinery released Spk. Treads 1689 | -10/Subcaves | Shifting Twisted Machinery released Sub. Machine Gun 1788 | -10/Subcaves | Core integrity fell below 50% 1788 | -10/Subcaves | Ambushed by Subdweller buried in earth 1790 | -10/Subcaves | Ambushed by Subdweller buried in earth 2114 | -10/Subcaves | Core integrity fell below 20% 2120 | -10/Subcaves | Destroyed by TD-5LF(R) with Subdweller Laser Last Messages --------------- 01811_ QG-223(R) system corrupted by crushing effect. 01811_ QG-223(R) knocked back. 01812_ QG-223(R) system terminally corrupted. 01815_ The unstable cave ceiling collapses. 01840_ Acquired 27 matter. 01844_ Acquired 11 matter. 01868_ Acquired 23 matter. 02018_ System corrupted: Energy discharge (-48). 02040_ YV-IJE(R) knocked back. 02041_ Grenade Launcher destroyed. 02052_ YV-IJE(R) knocked back. 02072_ Chain reaction triggered in Sub. Power Source. 02072_ YV-IJE(R) destroyed. 02072_ Lgt. Angular Momentum Engine destroyed. 02072_ Destroyed Lgt. Angular Momentum Engine. 02075_ Acquired 10 matter. 02115_ Carbon-fiber Leg destroyed. 02119_ Lgt. EM Pulse Cannon destroyed. Map ----- +----------------------------------------------------+ | ?????????????????????????????????????????????????? | | ?????????????????????????????????????????????????? | | ?????????????????????????????????????????????????? | | ?????????????????????????????????????????????????? | | ?????????????????????????????????????????????????? | | ?????????????????????????????????????????????????? | | ?????????????????????????????????????????????????? | | ?????????????????????????????????????????????????? | | ?????????????????????????????????????????????????? | | ?????????????????????????????????????????????????? | | ?????????????????????????# ?????????????????????? | | ???????????????????????## ?????????????????????? | | ??????????????????????## ?????????????????????? | | ?????????????????????## ?????????????????????? | | ?????????????????????# ?????????????????????? | | ?????????????????????? ?????????????????????? | | ?????????????????#???? #?????????????????????? | | ?????????????????# ?### #?????????????????????? | | ?????????????????# ?$#< #?????????????????????? | | ??????????????????# &?R ?????????????????????? | | ??????????????????? <## RR ####??????????????????? | | ????????????????????# ; ##?????????????????? | | ????????????????????#; #?????????????????? | | ###?????????######?## ##????????????????? | | ####?????## ## ##???????????????? | | " #???### ## @ #???????????????? | | " ##??#" ## ##???????????????? | | # """#??#" # #????????????????? | | # ##???# # ##????????????????? | | #????# ## #?????????????????? | | ##???# " ## ###?????????????????? | | #???# #???????????????????? | | ##""## ## ## #??????????????????? | | ###"" ### # #??????????????????? | | #??#" ## ##??????????????????? | | ###??## ### " #??????????????????? | | #?????# ???#" & " # #??????????????????? | | ##????"?????#"&&& " # ##??????????????????? | | #???????#### %"## # #???????????????????? | | #??????## ""##### # #???????????????????? | | ###???## "##???# # ???????????????????? | | ##### ##???? # ???????????????????? | | ##???? ## #???????????????????? | | #???# ? ????????????????????? | | #??? ? ????????????????????? | | # ### #####??? ? ????????????????????? | | ## #? ?????? ??????????????????????? | | ## ???? ??????????????????????? | | ?? %??????????????????????? | | ### # #### ???????????????????????????? | +----------------------------------------------------+ Best States ------------- Heat Dissipation 25 Energy Generation 18 Energy Capacity 250 Matter Stores 300 Matter Capacity 300 Sight Range 16 Terrain Scan Density 10 Resistance: KI 20 Resistance: TH 20 Resistance: EX 20 Resistance: EM 20 Resistance: I 20 Resistance: S 20 Resistance: P 20 Evasion (%) 55 Offensive Hacking 10 Item Schematics ----------------- None Robot Schematics ------------------ None Fabricated ------------ Nothing Repaired ---------- Nothing Studied --------- None Alien Tech Used ----------------- None Achievements -------------- Do Not Disturb Challenges ------------ None Game ------ Seed LaunchDimensionalTreads Manual? 0 Play Time 00:39:53 Cumulative 15.2 hours Start 2025.11.23 @ 22:58:05 End 2025.11.24 @ 22:56:07 Sessions 3 Manual Loads 0 Difficulty Adventurer Special Mode None Game No. 8 Rogue 0 Adventurer 8 Explorer 0 Win Type - Total 0 Types 0/0/0/0/0/0/0/0/0/0 Lore% 4 Gallery% 16 Achievement% 12 Wizard Run 0 Options --------- Layout 1 ASCII 0 Keyboard 0 Movement Mouse Keybinds 0 Fullscreen 1 Font 48/Smallcaps Map View 50x40 Zoom Use 0% Tactical HUD 1 Map Filters NONE Filters NONE Steam 1 RUN: 322a7418-6a77-48f2-b6c0-f794352a2194